Body,Body Name,Date,TransNo,Amount � (Excl VAT),Supplier name,Description,Expense Area,Expense Type,Expense Code,
http://opendatacommunities.org/id/london-borough-council/sutton,London Borough of Sutton,25/11/2019,1286169,49.05 , W M MORRISONS.COM,GROCERIES,Peoples Services Directorate,Provisions - General,F150,
http://opendatacommunities.org/id/london-borough-council/sutton,London Borough of Sutton,04/11/2019,1286169,47.55 , ASDA SUPERSTORE,GROCERIES,Peoples Services Directorate,Provisions - General,F150,
http://opendatacommunities.org/id/london-borough-council/sutton,London Borough of Sutton,17/11/2019,1286169,42.37 , ASDA SUPERSTORE,GROCERIES,Peoples Services Directorate,Refreshments,F155,
http://opendatacommunities.org/id/london-borough-council/sutton,London Borough of Sutton,12/11/2019,1286169,71.05 , W M MORRISONS.COM,GROCERIES,Peoples Services Directorate,Refreshments,F155,
http://opendatacommunities.org/id/london-borough-council/sutton,London Borough of Sutton,01/11/2019,1286169,(1.20), W M MORRISONS.COM,REFUND,Peoples Services Directorate,Refreshments,F155,
http://opendatacommunities.org/id/london-borough-council/sutton,London Borough of Sutton,28/10/2019,1286169,82.85 , W M MORRISONS.COM,GROCERIES,Peoples Services Directorate,Refreshments,F155,
http://opendatacommunities.org/id/london-borough-council/sutton,London Borough of Sutton,28/10/2019,1286169,51.90 , W M MORRISONS.COM,GROCERIES,Peoples Services Directorate,Refreshments,F155,
http://opendatacommunities.org/id/london-borough-council/sutton,London Borough of Sutton,19/11/2019,1286169,27.91 , AMZNMKTPLACE AMAZON.CO,TOYS & EQUIPMENT,Peoples Services Directorate,Other Services,F340,
http://opendatacommunities.org/id/london-borough-council/sutton,London Borough of Sutton,08/11/2019,1286169,55.37 , AMZNMKTPLACE AMAZON.CO,TOYS & EQUIPMENT,Peoples Services Directorate,Other Services,F340,
http://opendatacommunities.org/id/london-borough-council/sutton,London Borough of Sutton,07/11/2019,1286169,23.52 , AMAZON.CO.UK AO4368CH5,TOYS & EQUIPMENT,Peoples Services Directorate,Other Services,F340,
http://opendatacommunities.org/id/london-borough-council/sutton,London Borough of Sutton,05/11/2019,1286169,10.82 , AMZNMKTPLACE,TOYS & EQUIPMENT,Peoples Services Directorate,Other Services,F340,
http://opendatacommunities.org/id/london-borough-council/sutton,London Borough of Sutton,04/11/2019,1286169,83.03 , BAKER ROSS,TOYS & EQUIPMENT,Peoples Services Directorate,Other Services,F340,
http://opendatacommunities.org/id/london-borough-council/sutton,London Borough of Sutton,13/11/2019,1286169,20.00 , OYSTER AUTO-TOP UP,OYSTER CARD TOP UP,Peoples Services Directorate,Staff Travelling Expenses,E130,
http://opendatacommunities.org/id/london-borough-council/sutton,London Borough of Sutton,10/11/2019,1286169,20.00 , OYSTER AUTO-TOP UP,OYSTER CARD TOP UP,Peoples Services Directorate,Staff Travelling Expenses,E130,
http://opendatacommunities.org/id/london-borough-council/sutton,London Borough of Sutton,25/11/2019,1286169,2.53 ,,CBT TRAINING,Peoples Services Directorate,Training - Course Fees,A520,
http://opendatacommunities.org/id/london-borough-council/sutton,London Borough of Sutton,23/11/2019,1286169,118.00 , CBT NUGGETS LLC,SPLIT - IT_PREMIUM (128.27%),Peoples Services Directorate,Training - Course Fees,A520,
http://opendatacommunities.org/id/london-borough-council/sutton,London Borough of Sutton,23/11/2019,1286169,(26.01), CBT NUGGETS LLC,BALANCING ENTRY AMOUNT (-84.81%),Peoples Services Directorate,Training - Course Fees,A520,
http://opendatacommunities.org/id/london-borough-council/sutton,London Borough of Sutton,26/11/2019,1286169,6.71 ,,FOREIGN EXCHANGE FEE,Peoples Services Directorate,Administrative Equipment,F001,
http://opendatacommunities.org/id/london-borough-council/sutton,London Borough of Sutton,26/11/2019,1286169,244.05 , MOJO HELPDESK,MOJO HELPDESK,Peoples Services Directorate,IT Equipment - Repair and Maintenance,F382,
http://opendatacommunities.org/id/london-borough-council/sutton,London Borough of Sutton,20/11/2019,1286169,9.17 , POUNDLAND LTD 1211,EVENT RESOURCES FOR ENJOY SUTTON EVENT 231119,Peoples Services Directorate,Advertising/Publicity (non Staff),F240,
http://opendatacommunities.org/id/london-borough-council/sutton,London Borough of Sutton,18/11/2019,1286169,12.08 , POUNDLAND LTD 1211,ENJOY SUTTON CHRISTMAS EVENT RESOURCES 231119,Peoples Services Directorate,Advertising/Publicity (non Staff),F240,
http://opendatacommunities.org/id/london-borough-council/sutton,London Borough of Sutton,18/11/2019,1286169,11.67 , WM MORRISONS STORE,ENJOY SUTTON CHRISTMAS EVENT RESOURCES 231119,Peoples Services Directorate,Advertising/Publicity (non Staff),F240,
http://opendatacommunities.org/id/london-borough-council/sutton,London Borough of Sutton,30/10/2019,1286169,66.87 , MAILCHIMP    MONTHLY,MAILCHIP  MONTHLY FEES,Peoples Services Directorate,Subscriptions - General,F450,
http://opendatacommunities.org/id/london-borough-council/sutton,London Borough of Sutton,14/11/2019,1286169,5.25 , PAYPAL  EBAY LANGLEYPR,BRASS PADLOCK,Peoples Services Directorate,General Maintenance,D500,
http://opendatacommunities.org/id/london-borough-council/sutton,London Borough of Sutton,22/11/2019,1286169,12.99 , O2 UK,CABLE AND MICROS USB FOR LN MOBILE,Peoples Services Directorate,Administrative Equipment,F001,
http://opendatacommunities.org/id/london-borough-council/sutton,London Borough of Sutton,19/11/2019,1286169,19.50 , MARKS&SPENCER PLC,CHRISTMAS DECORATIONS FOR SUTTON CENTRE,Peoples Services Directorate,Administrative Equipment,F001,
http://opendatacommunities.org/id/london-borough-council/sutton,London Borough of Sutton,19/11/2019,1286169,35.33 , WILKO RETAIL LIMITED,CHRISTMAS DECORATIONS FOR SUTTON CENTRE,Peoples Services Directorate,Administrative Equipment,F001,
http://opendatacommunities.org/id/london-borough-council/sutton,London Borough of Sutton,14/11/2019,1286169,183.32 , CHRISTMAS TREE WORLD,THE 8FT ULTRA MOUNTAIN PINE,Peoples Services Directorate,Administrative Equipment,F001,
http://opendatacommunities.org/id/london-borough-council/sutton,London Borough of Sutton,08/11/2019,1286169,17.99 , WWW.EMBH-LTD.COM,SCA FLAT PLASTIC SPARE KEY,Peoples Services Directorate,General Maintenance,D500,
http://opendatacommunities.org/id/london-borough-council/sutton,London Borough of Sutton,31/10/2019,1286169,74.50 , MARK FISHER,ROCK SALT FOR WALLINGTON CENTRE,Peoples Services Directorate,General Maintenance,D500,
http://opendatacommunities.org/id/london-borough-council/sutton,London Borough of Sutton,21/11/2019,1286169,11.79 , PAYPAL  EBAY INKEXPRES,DYNAMO TAPE,Peoples Services Directorate,Administrative Equipment,F001,
http://opendatacommunities.org/id/london-borough-council/sutton,London Borough of Sutton,21/11/2019,1286169,255.75 , WWW.INSTANTPRINT.C,ART & CRAFT SPRING 2020 BOOKLET,Peoples Services Directorate,Advertising/Publicity (non Staff),F240,
http://opendatacommunities.org/id/london-borough-council/sutton,London Borough of Sutton,11/11/2019,1286169,39.07 , WWW.RUTLANDS.CO.UK,DRILL PRESS & CARPENTERS MALLET,Peoples Services Directorate,Education Equipment,F009,
http://opendatacommunities.org/id/london-borough-council/sutton,London Borough of Sutton,01/11/2019,1286169,(73.69), SUTTON COLLEGE,TEST CCIP REFUNDS S0101937 01/11/19,Peoples Services Directorate,Training - Course Fees,A520,
http://opendatacommunities.org/id/london-borough-council/sutton,London Borough of Sutton,28/10/2019,1286169,73.69 , SUTTON COLLEGE,TEST PAYMENT WILL BE REFUNDED,Peoples Services Directorate,Training - Course Fees,A520,
http://opendatacommunities.org/id/london-borough-council/sutton,London Borough of Sutton,25/11/2019,1286169,4.98 , WAITROSE 677,FRESH FLOWERS AND SUDRIES C&G L2 25/11/19,Peoples Services Directorate,Education Equipment,F009,
http://opendatacommunities.org/id/london-borough-council/sutton,London Borough of Sutton,21/11/2019,1286169,7.75 , MELBOURNE NURSERY,FRESH FLOWERS AND FOLIAGE C&G L3 AND L2 21/11/19,Peoples Services Directorate,Education Equipment,F009,
http://opendatacommunities.org/id/london-borough-council/sutton,London Borough of Sutton,14/11/2019,1286169,7.00 , MELBOURNE NURSERY,FLORISTRY FOUNDATION FRESH MATERIALS,Peoples Services Directorate,Education Equipment,F009,
http://opendatacommunities.org/id/london-borough-council/sutton,London Borough of Sutton,14/11/2019,1286169,10.62 , IKEA LTD 144 CROYDON E,FLORISTRY L3 CONTAINER AND PLANTS,Peoples Services Directorate,Education Equipment,F009,
http://opendatacommunities.org/id/london-borough-council/sutton,London Borough of Sutton,13/11/2019,1286169,3.33 , THEWORKS.CO.UK,FLORISTRY L3 CONTAINER,Peoples Services Directorate,Education Equipment,F009,
http://opendatacommunities.org/id/london-borough-council/sutton,London Borough of Sutton,11/11/2019,1286169,6.87 , WAITROSE 677,FLORISTRY L2 FRESH MATERIALS,Peoples Services Directorate,Education Equipment,F009,
http://opendatacommunities.org/id/london-borough-council/sutton,London Borough of Sutton,07/11/2019,1286169,6.20 , MELBOURNE NURSERY,C&G L3 FRESH MATERIALS,Peoples Services Directorate,Education Equipment,F009,
http://opendatacommunities.org/id/london-borough-council/sutton,London Borough of Sutton,06/11/2019,1286169,3.00 , TESCO STORE 3066,FLORISTRY FOUNDATION FRESH MATERIALS,Peoples Services Directorate,Education Equipment,F009,
http://opendatacommunities.org/id/london-borough-council/sutton,London Borough of Sutton,06/11/2019,1286169,3.00 , TESCO STORE 3066,FLORISTRY FOUNDATION FRESH MATERIALS,Peoples Services Directorate,Education Equipment,F009,
http://opendatacommunities.org/id/london-borough-council/sutton,London Borough of Sutton,06/11/2019,1286169,6.00 , MELBOURNE NURSERY,C&G L3 FRESH MATERIALS,Peoples Services Directorate,Education Equipment,F009,
http://opendatacommunities.org/id/london-borough-council/sutton,London Borough of Sutton,31/10/2019,1286169,5.00 , MELBOURNE NURSERY,C&G L3 1/11/19 - FRESH FLOWERS AND FOLIAGE,Peoples Services Directorate,Education Equipment,F009,
http://opendatacommunities.org/id/london-borough-council/sutton,London Borough of Sutton,29/10/2019,1286169,20.50 , MELBOURNE NURSERY,"C&G L2 29/10/9, FLORISTRY FOUNDATION 31/10/19, C&G L3 1/11/19 - FRESH FLOWERS AND FOLIAGE",Peoples Services Directorate,Education Equipment,F009,
http://opendatacommunities.org/id/london-borough-council/sutton,London Borough of Sutton,04/11/2019,1286169,70.20 , EDUCATIONUMBRELLA.,BEAUTY THERAPY VRQ L2 LOGBOK C&G X6,Peoples Services Directorate,Education Equipment,F009,
http://opendatacommunities.org/id/london-borough-council/sutton,London Borough of Sutton,25/11/2019,1286169,13.94 , LIDL GB LONDON,COOKERY INGREDIENTS,Peoples Services Directorate,Education Equipment,F009,
http://opendatacommunities.org/id/london-borough-council/sutton,London Borough of Sutton,19/11/2019,1286169,4.20 , WILKO RETAIL LIMITED,COOKERY MATERIALS,Peoples Services Directorate,Education Equipment,F009,
http://opendatacommunities.org/id/london-borough-council/sutton,London Borough of Sutton,18/11/2019,1286169,26.65 , SAINSBURYS 2006,COOKERY INGREDIENTS,Peoples Services Directorate,Education Equipment,F009,
http://opendatacommunities.org/id/london-borough-council/sutton,London Borough of Sutton,13/11/2019,1286169,11.45 , SAINSBURYS 2006,COOKERY INGREDIENTS,Peoples Services Directorate,Education Equipment,F009,
http://opendatacommunities.org/id/london-borough-council/sutton,London Borough of Sutton,12/11/2019,1286169,2.00 , WILKO RETAIL LIMITED,COOKERY MATERIALS,Peoples Services Directorate,Education Equipment,F009,
http://opendatacommunities.org/id/london-borough-council/sutton,London Borough of Sutton,11/11/2019,1286169,18.35 , LIDL GB LONDON,,Peoples Services Directorate,Education Equipment,F009,
http://opendatacommunities.org/id/london-borough-council/sutton,London Borough of Sutton,05/11/2019,1286169,4.50 , WILKO RETAIL LIMITED,COOKERY EQUIP,Peoples Services Directorate,Education Equipment,F009,
http://opendatacommunities.org/id/london-borough-council/sutton,London Borough of Sutton,04/11/2019,1286169,24.25 , SAINSBURYS SACAT 2006,COOKERY EQUIP.,Peoples Services Directorate,Education Equipment,F009,
http://opendatacommunities.org/id/london-borough-council/sutton,London Borough of Sutton,30/10/2019,1286169,8.93 , LIDL GB LONDON,COOKERY EQUIPMENT,Peoples Services Directorate,Education Equipment,F009,
http://opendatacommunities.org/id/london-borough-council/sutton,London Borough of Sutton,29/10/2019,1286169,3.00 , WILKO RETAIL LIMITED,COOKERY MATERIALS,Peoples Services Directorate,Education Equipment,F009,
http://opendatacommunities.org/id/london-borough-council/sutton,London Borough of Sutton,28/10/2019,1286169,22.20 , LIDL GB LONDON,COOKERY MATERIALS,Peoples Services Directorate,Education Equipment,F009,
http://opendatacommunities.org/id/london-borough-council/sutton,London Borough of Sutton,21/11/2019,1286169,20.00 , OYSTER AUTO-TOP UP,20 A530 0328 9999 - OYSTER.,Peoples Services Directorate,Conferences - Travel and Subsistence,A526,
http://opendatacommunities.org/id/london-borough-council/sutton,London Borough of Sutton,06/11/2019,1286169,20.00 , OYSTER AUTO-TOP UP,20.00 A530 0301 9999 - OYSTER.PNG,Peoples Services Directorate,Travelling and Subsistence Allowances,A530,
http://opendatacommunities.org/id/london-borough-council/sutton,London Borough of Sutton,05/11/2019,1286169,20.00 , AUTO TOP-UP ARREARS,20 A530 0301 9999 - OYSTER.P,Peoples Services Directorate,Travelling and Subsistence Allowances,A530,
http://opendatacommunities.org/id/london-borough-council/sutton,London Borough of Sutton,23/11/2019,1286169,20.00 , OYSTER AUTO-TOP UP,20.00 A530 0301 9999 -,Peoples Services Directorate,Travelling and Subsistence Allowances,A530,
http://opendatacommunities.org/id/london-borough-council/sutton,London Borough of Sutton,22/11/2019,1286169,20.00 , OYSTER AUTO-TOP UP,20 A530 0301 9999 - OYSTER.,Peoples Services Directorate,Travelling and Subsistence Allowances,A530,
http://opendatacommunities.org/id/london-borough-council/sutton,London Borough of Sutton,10/11/2019,1286169,20.00 , OYSTER AUTO-TOP UP,20.00 - A530 0301 9999,Peoples Services Directorate,Travelling and Subsistence Allowances,A530,
http://opendatacommunities.org/id/london-borough-council/sutton,London Borough of Sutton,08/11/2019,1286169,20.00 , OYSTER AUTO-TOP UP,20.00 AUTO TOP UP - A530 0304 9999,Peoples Services Directorate,Travelling and Subsistence Allowances,A530,
http://opendatacommunities.org/id/london-borough-council/sutton,London Borough of Sutton,25/11/2019,1286169,20.00 , AUTO TOP-UP ARREARS,20 A530 0304 9999,Peoples Services Directorate,Travelling and Subsistence Allowances,A530,
http://opendatacommunities.org/id/london-borough-council/sutton,London Borough of Sutton,23/11/2019,1286169,20.00 , OYSTER AUTO-TOP UP,20.00 AUTO TOP UP - A530 0304 9999 - 2,Peoples Services Directorate,Travelling and Subsistence Allowances,A530,
http://opendatacommunities.org/id/london-borough-council/sutton,London Borough of Sutton,21/11/2019,1286169,20.00 , OYSTER AUTO-TOP UP,20 A530 0304 9999 - OYSTE,Peoples Services Directorate,Travelling and Subsistence Allowances,A530,
http://opendatacommunities.org/id/london-borough-council/sutton,London Borough of Sutton,17/11/2019,1286169,20.00 , OYSTER AUTO-TOP UP,20 A530 0304 9999 - OYSTER,Peoples Services Directorate,Travelling and Subsistence Allowances,A530,
http://opendatacommunities.org/id/london-borough-council/sutton,London Borough of Sutton,16/11/2019,1286169,20.00 , OYSTER AUTO-TOP UP,20 A530 0328 9999 - OYSTER.,Peoples Services Directorate,Travelling and Subsistence Allowances,A530,
http://opendatacommunities.org/id/london-borough-council/sutton,London Borough of Sutton,09/11/2019,1286169,20.00 , OYSTER AUTO-TOP UP,20.00 AUTO TOP UP - A530 0304 9999,Peoples Services Directorate,Travelling and Subsistence Allowances,A530,
http://opendatacommunities.org/id/london-borough-council/sutton,London Borough of Sutton,15/11/2019,1286169,36.00 , WWW.CSKILLS.ORG,HEALTH & SAFETY CERTIFICATE,Peoples Services Directorate,Personal Requisites,F106,
http://opendatacommunities.org/id/london-borough-council/sutton,London Borough of Sutton,18/11/2019,1286169,20.31 , LIDL GB LONDON,LC GROC,Peoples Services Directorate,Personal Requisites,F106,
http://opendatacommunities.org/id/london-borough-council/sutton,London Borough of Sutton,18/11/2019,1286169,4.50 , PP SONIADOR CAFE,KP ACT COURT,Peoples Services Directorate,Personal Requisites,F106,
http://opendatacommunities.org/id/london-borough-council/sutton,London Borough of Sutton,16/11/2019,1286169,14.50 , TEMPLE OF CAMDEN,RA ACT,Peoples Services Directorate,Personal Requisites,F106,
http://opendatacommunities.org/id/london-borough-council/sutton,London Borough of Sutton,13/11/2019,1286169,30.84 , AMZNMKTPLACE AMAZON.CO,QUAD,Peoples Services Directorate,Personal Requisites,F106,
http://opendatacommunities.org/id/london-borough-council/sutton,London Borough of Sutton,12/11/2019,1286169,4.32 , MCDONALDS911,MA ACT,Peoples Services Directorate,Personal Requisites,F106,
http://opendatacommunities.org/id/london-borough-council/sutton,London Borough of Sutton,06/11/2019,1286169,167.08 , ALLPAY  ORBIT GROUP LI,JD RENT,Peoples Services Directorate,Personal Requisites,F106,
http://opendatacommunities.org/id/london-borough-council/sutton,London Borough of Sutton,01/11/2019,1286169,8.32 , MCDONALDS,LC ACT,Peoples Services Directorate,Personal Requisites,F106,
http://opendatacommunities.org/id/london-borough-council/sutton,London Borough of Sutton,01/11/2019,1286169,94.75 , POST OFFICE COUNTER,RA PP,Peoples Services Directorate,Personal Requisites,F106,
http://opendatacommunities.org/id/london-borough-council/sutton,London Borough of Sutton,30/10/2019,1286169,3.16 , MCDONALD S RESTAURANT,KP ACT COURT,Peoples Services Directorate,Personal Requisites,F106,
http://opendatacommunities.org/id/london-borough-council/sutton,London Borough of Sutton,30/10/2019,1286169,75.00 , THE POST OFFICE,BIRTHDAY VOUCHERS,Peoples Services Directorate,Personal Requisites,F106,
http://opendatacommunities.org/id/london-borough-council/sutton,London Borough of Sutton,08/11/2019,1286169,169.12 , WWW.ARGOS.CO.UK,LEAVING CARE EQUIPMENT,Peoples Services Directorate,Personal Requisites,F106,
http://opendatacommunities.org/id/london-borough-council/sutton,London Borough of Sutton,02/11/2019,1286169,206.99 , AMZNMKTPLACE,206.99 F106 0304 9999 - AMAZON TOTAL.,Peoples Services Directorate,Personal Requisites,F106,
http://opendatacommunities.org/id/london-borough-council/sutton,London Borough of Sutton,13/11/2019,1286169,248.20 , 2LAA012606321 LTR FAMI,248.20 - F106 0304 9999 - BIOMETRIC CARD.PNG,Peoples Services Directorate,Personal Requisites,F106,
http://opendatacommunities.org/id/london-borough-council/sutton,London Borough of Sutton,30/10/2019,1286169,299.00 , CURRYS ONLINE,299.00 - F106 0304 9999 - CURRY'S.PNG,Peoples Services Directorate,Personal Requisites,F106,
http://opendatacommunities.org/id/london-borough-council/sutton,London Borough of Sutton,08/11/2019,1286169,179.00 , WWW.IKEA.COM,179.00 - F106 0304 9999 - IKEA.PNG,Peoples Services Directorate,Personal Requisites,F106,
http://opendatacommunities.org/id/london-borough-council/sutton,London Borough of Sutton,21/11/2019,1286169,254.06 , TRAVELODGE,EMERGENCY ACCOMMODATION,Peoples Services Directorate,Accommodation - Bed and Breakfast,H202,
http://opendatacommunities.org/id/london-borough-council/sutton,London Borough of Sutton,16/11/2019,1286169,13.10 , NEW SOUTHERN RAILW,RA TRAVEL XMAS,Peoples Services Directorate,C.C.A Travel & Subsistance,H212,
http://opendatacommunities.org/id/london-borough-council/sutton,London Borough of Sutton,21/11/2019,1286169,45.00 , ARGOS SELLY OAK,DR SET UP,Peoples Services Directorate,Set Up Costs - Children Leaving Care,H336,
http://opendatacommunities.org/id/london-borough-council/sutton,London Borough of Sutton,01/11/2019,1286169,607.80 , B & Q 1191,LC SET UP,Peoples Services Directorate,Set Up Costs - Children Leaving Care,H336,
http://opendatacommunities.org/id/london-borough-council/sutton,London Borough of Sutton,01/11/2019,1286169,765.00 , SUTTON APPLIANCES,LC SET UP,Peoples Services Directorate,Set Up Costs - Children Leaving Care,H336,
http://opendatacommunities.org/id/london-borough-council/sutton,London Borough of Sutton,29/10/2019,1286169,122.95 , WWW.ARGOS.CO.UK,MA SET UP,Peoples Services Directorate,Set Up Costs - Children Leaving Care,H336,
http://opendatacommunities.org/id/london-borough-council/sutton,London Borough of Sutton,11/11/2019,1286169,20.00 , OYSTER AUTO-TOP UP,20.00 - A530 0310 9999 -,Peoples Services Directorate,Travelling and Subsistence Allowances,A530,
http://opendatacommunities.org/id/london-borough-council/sutton,London Borough of Sutton,20/11/2019,1286169,160.00 , CURRYS ONLINE,160 - F106 0308 9999 - CURRYS TV ORDER,Peoples Services Directorate,Personal Requisites,F106,
http://opendatacommunities.org/id/london-borough-council/sutton,London Borough of Sutton,29/10/2019,1286169,20.00 , OYSTER AUTO-TOP UP,20.00 - A530 0310 9999 - OYSTER TOP UP,Peoples Services Directorate,Travelling and Subsistence Allowances,A530,
http://opendatacommunities.org/id/london-borough-council/sutton,London Borough of Sutton,23/11/2019,1286169,20.00 , OYSTER AUTO-TOP UP,20.00 - A530 0310 9999 - OYSTER AUTO UP,Peoples Services Directorate,Travelling and Subsistence Allowances,A530,
http://opendatacommunities.org/id/london-borough-council/sutton,London Borough of Sutton,29/10/2019,1286169,445.46 , TRAVELODGE,445.46 - H202 0310 9999 - TRAVELODGE.,Peoples Services Directorate,Travelling and Subsistence Allowances,A530,
http://opendatacommunities.org/id/london-borough-council/sutton,London Borough of Sutton,08/11/2019,1286169,16.67 , OYSTER AUTO-TOP UP,TRAVEL,Peoples Services Directorate,Recruitment Expenses,A531,
http://opendatacommunities.org/id/london-borough-council/sutton,London Borough of Sutton,14/11/2019,1286169,552.83 , TRAVELODGE,EMERGENCY ACCOMMODATION,Peoples Services Directorate,Accommodation - Bed and Breakfast,H202,
http://opendatacommunities.org/id/london-borough-council/sutton,London Borough of Sutton,07/11/2019,1286169,606.03 , TRAVELODGE,EMERGENCY ACCOMMODATION,Peoples Services Directorate,Accommodation - Bed and Breakfast,H202,
http://opendatacommunities.org/id/london-borough-council/sutton,London Borough of Sutton,31/10/2019,1286169,497.02 , TRAVELODGE,ACCOMMODATION,Peoples Services Directorate,Accommodation - Bed and Breakfast,H202,
http://opendatacommunities.org/id/london-borough-council/sutton,London Borough of Sutton,31/10/2019,1286169,256.96 , TRAVELODGE,256.96 - - H202 0310 9999 - TRAVELODGE CHESSINGTON,Peoples Services Directorate,Accommodation - Bed and Breakfast,H202,
http://opendatacommunities.org/id/london-borough-council/sutton,London Borough of Sutton,31/10/2019,1286169,294.46 , TRAVELODGE,294.46 - H202 0310 9999 - TRAVELODGE CHESSINGTON,Peoples Services Directorate,Accommodation - Bed and Breakfast,H202,
http://opendatacommunities.org/id/london-borough-council/sutton,London Borough of Sutton,21/11/2019,1286169,599.38 , TRAVELODGE,EMERGENCY ACCOMMODATION,Peoples Services Directorate,Accommodation - Bed and Breakfast,H202,
http://opendatacommunities.org/id/london-borough-council/sutton,London Borough of Sutton,25/11/2019,1286169,20.00 , TFL AUTOSETTLEMENT,20.00 - A530 0311 9999 - OYSTER TOP UP,Peoples Services Directorate,Travelling and Subsistence Allowances,A530,
http://opendatacommunities.org/id/london-borough-council/sutton,London Borough of Sutton,23/11/2019,1286169,20.00 , OYSTER AUTO-TOP UP,20.00 -A530 0311 9999 -,Peoples Services Directorate,Travelling and Subsistence Allowances,A530,
http://opendatacommunities.org/id/london-borough-council/sutton,London Borough of Sutton,30/10/2019,1286169,20.00 , OYSTER AUTO-TOP UP,20.00 - A530 0311 9999 - OYSTER AUTO TOP U,Peoples Services Directorate,Travelling and Subsistence Allowances,A530,
http://opendatacommunities.org/id/london-borough-council/sutton,London Borough of Sutton,29/10/2019,1286169,75.00 , WWW.WIGHTLINK.CO.UK,STAFF TRAVEL LAC REVIEW,Peoples Services Directorate,Travelling and Subsistence Allowances,A530,
http://opendatacommunities.org/id/london-borough-council/sutton,London Borough of Sutton,21/11/2019,1286169,20.00 , OYSTER AUTO-TOP UP,20.00 - A530 0311 9999 - OYSTER TOP UP,Peoples Services Directorate,Travelling and Subsistence Allowances,A530,
http://opendatacommunities.org/id/london-borough-council/sutton,London Borough of Sutton,20/11/2019,1286169,20.00 , OYSTER AUTO-TOP UP,20.00 - A530 0311 9999 - OYSTER TOP UP 21ST NOV,Peoples Services Directorate,Travelling and Subsistence Allowances,A530,
http://opendatacommunities.org/id/london-borough-council/sutton,London Borough of Sutton,15/11/2019,1286169,20.00 , OYSTER AUTO-TOP UP,20.00 AUTO TOP UP - A530 0311 9999,Peoples Services Directorate,Travelling and Subsistence Allowances,A530,
http://opendatacommunities.org/id/london-borough-council/sutton,London Borough of Sutton,13/11/2019,1286169,20.00 , OYSTER AUTO-TOP UP,20.00 - A530 0311 9999 - OYSTER TOP UP,Peoples Services Directorate,Travelling and Subsistence Allowances,A530,
http://opendatacommunities.org/id/london-borough-council/sutton,London Borough of Sutton,09/11/2019,1286169,20.00 , OYSTER AUTO-TOP UP,20.00 - A530 0311 9999 - OYSTER TOP UP,Peoples Services Directorate,Travelling and Subsistence Allowances,A530,
http://opendatacommunities.org/id/london-borough-council/sutton,London Borough of Sutton,06/11/2019,1286169,15.00 , TFL OYST PHOTOCARD,15.00 - A530 0311 9999 - OYSTER FOR LOOKED AFTER CHILD .PNG,Peoples Services Directorate,Travelling and Subsistence Allowances,A530,
http://opendatacommunities.org/id/london-borough-council/sutton,London Borough of Sutton,09/11/2019,1286169,20.00 , OYSTER AUTO-TOP UP,20.00 - A530 0311 9999 - OYSTER TOP UP,Peoples Services Directorate,Travelling and Subsistence Allowances,A530,
http://opendatacommunities.org/id/london-borough-council/sutton,London Borough of Sutton,15/11/2019,1286169,25.00 , HUNGRY HORSE,CONTACT ACTIVITY,Peoples Services Directorate,Personal Requisites,F106,
http://opendatacommunities.org/id/london-borough-council/sutton,London Borough of Sutton,12/11/2019,1286169,25.40 , WWW.EXTREME.BETTER.ORG,CONTACT ACTIVITY,Peoples Services Directorate,Personal Requisites,F106,
http://opendatacommunities.org/id/london-borough-council/sutton,London Borough of Sutton,07/11/2019,1286169,22.00 , LBSUTTON,BIRTH CERTIFICATE,Peoples Services Directorate,Personal Requisites,F106,
http://opendatacommunities.org/id/london-borough-council/sutton,London Borough of Sutton,22/11/2019,1286169,42.39 , WWW.TENPIN.CO.UK,LAC EVENT,Peoples Services Directorate,Personal Requisites,F106,
http://opendatacommunities.org/id/london-borough-council/sutton,London Borough of Sutton,22/11/2019,1286169,33.33 , HUNGRY HORSE,LAC EVENT,Peoples Services Directorate,Personal Requisites,F106,
http://opendatacommunities.org/id/london-borough-council/sutton,London Borough of Sutton,08/11/2019,1286169,35.00 , ESSEX COUNTY COUNCIL,DOCUMENTS,Peoples Services Directorate,Personal Requisites,F106,
http://opendatacommunities.org/id/london-borough-council/sutton,London Borough of Sutton,22/11/2019,1286169,29.00 , WANDSWORTH COUNCIL,29 - F106 0311 999 BIRTH CERTIFICATE WANDSWORTH.PNG,Peoples Services Directorate,Personal Requisites,F106,
http://opendatacommunities.org/id/london-borough-council/sutton,London Borough of Sutton,22/11/2019,1286169,(29.00), WANDSWORTH COUNCIL,29 - F106 0311 999 BIRTH CERTIFICATE WANDSWORTH.PNG,Peoples Services Directorate,Personal Requisites,F106,
http://opendatacommunities.org/id/london-borough-council/sutton,London Borough of Sutton,06/11/2019,1286169,20.00 , WWW.WIGHTLINK.CO.UK,20 F106 0311 999 WIGHT LINK FOR PEP MEETING.PNG,Peoples Services Directorate,Personal Requisites,F106,
http://opendatacommunities.org/id/london-borough-council/sutton,London Borough of Sutton,15/11/2019,1286169,25.00 , HUNGRY HORSE,CONTACT ACTIVITY,Peoples Services Directorate,Personal Requisites,F106,
http://opendatacommunities.org/id/london-borough-council/sutton,London Borough of Sutton,06/11/2019,1286169,81.98 , DOMINO'S,81.98 - F106 0311 9999 - DOMINOS PIZZA FOR SALVATION ARMY.PNG,Peoples Services Directorate,Other-Materials,F115,
http://opendatacommunities.org/id/london-borough-council/sutton,London Borough of Sutton,21/11/2019,1286169,22.00 , LBSUTTON,BIRTH CERTIFICATE,Peoples Services Directorate,Other-Materials,F115,
http://opendatacommunities.org/id/london-borough-council/sutton,London Borough of Sutton,04/11/2019,1286169,24.99 , WWW.PIZZAHUT.CO.UK,24.99 - F155 0311 9999 - PIZZA HUT.,Peoples Services Directorate,Refreshments,F155,
http://opendatacommunities.org/id/london-borough-council/sutton,London Borough of Sutton,14/11/2019,1286169,135.00 , SPRING RIVER,CONTACT ACCOMMODATION,Peoples Services Directorate,Accommodation - Bed and Breakfast,H202,
http://opendatacommunities.org/id/london-borough-council/sutton,London Borough of Sutton,08/11/2019,1286169,54.49 , TRAVELODGE,54.49 - H202 0311 9999 - TRAVELODGE CARLISLE.PNG,Peoples Services Directorate,Accommodation - Bed and Breakfast,H202,
http://opendatacommunities.org/id/london-borough-council/sutton,London Borough of Sutton,21/11/2019,1286169,65.89 , TRAVELODGE,CONTACT,Peoples Services Directorate,Accommodation - Bed and Breakfast,H202,
http://opendatacommunities.org/id/london-borough-council/sutton,London Borough of Sutton,22/11/2019,1286169,20.00 , OYSTER AUTO-TOP UP,20 A530 0312 9999 - OYSTER.,Peoples Services Directorate,Conferences - Travel and Subsistence,A526,
http://opendatacommunities.org/id/london-borough-council/sutton,London Borough of Sutton,20/11/2019,1286169,20.00 , OYSTER AUTO-TOP UP,20.00 AUTO TOP UP - A530 0312 9999,Peoples Services Directorate,Conferences - Travel and Subsistence,A526,
http://opendatacommunities.org/id/london-borough-council/sutton,London Borough of Sutton,31/10/2019,1286169,20.00 , OYSTER AUTO-TOP UP,20 - A530 0312 9999 - OYSTER.PNG,Peoples Services Directorate,Conferences - Travel and Subsistence,A526,
http://opendatacommunities.org/id/london-borough-council/sutton,London Borough of Sutton,06/11/2019,1286169,20.00 , OYSTER AUTO-TOP UP,20 A530 0312 9999 - OYSTER .PNG,Peoples Services Directorate,Travelling and Subsistence Allowances,A530,
http://opendatacommunities.org/id/london-borough-council/sutton,London Borough of Sutton,22/11/2019,1286169,20.00 , OYSTER AUTO-TOP UP,20 A530 0312 9999,Peoples Services Directorate,Travelling and Subsistence Allowances,A530,
http://opendatacommunities.org/id/london-borough-council/sutton,London Borough of Sutton,21/11/2019,1286169,20.00 , OYSTER AUTO-TOP UP,20 A530 0312 9999 - OYST,Peoples Services Directorate,Travelling and Subsistence Allowances,A530,
http://opendatacommunities.org/id/london-borough-council/sutton,London Borough of Sutton,20/11/2019,1286169,22.00 , LBSUTTON,TRAVEL OYSTER TOP UP,Peoples Services Directorate,Travelling and Subsistence Allowances,A530,
http://opendatacommunities.org/id/london-borough-council/sutton,London Borough of Sutton,02/11/2019,1286169,20.00 , OYSTER AUTO-TOP UP,20 - A530 0312 9999 - OYSTE,Peoples Services Directorate,Travelling and Subsistence Allowances,A530,
http://opendatacommunities.org/id/london-borough-council/sutton,London Borough of Sutton,19/11/2019,1286169,20.00 , OYSTER AUTO-TOP UP,20 A530 0312 9999 - OYSTER,Peoples Services Directorate,Travelling and Subsistence Allowances,A530,
http://opendatacommunities.org/id/london-borough-council/sutton,London Borough of Sutton,14/11/2019,1286169,20.00 , OYSTER AUTO-TOP UP,20.00 - A530 0312 9999 - OYSTER AUTO TOP UP,Peoples Services Directorate,Travelling and Subsistence Allowances,A530,
http://opendatacommunities.org/id/london-borough-council/sutton,London Borough of Sutton,22/11/2019,1286169,254.00 , HM PASSPORT,254.00 - F106 0312 9999 - PASSPORT APPOINTMENT FAST TRACK,Peoples Services Directorate,Personal Requisites,F106,
http://opendatacommunities.org/id/london-borough-council/sutton,London Borough of Sutton,21/11/2019,1286169,20.00 , OYSTER AUTO-TOP UP,22 - F106 0312 9999 - BIRTH CERTS -,Peoples Services Directorate,Personal Requisites,F106,
http://opendatacommunities.org/id/london-borough-council/sutton,London Borough of Sutton,20/11/2019,1286169,22.00 , LBSUTTON,22 - F106 0312 9999 - BIRTH CERT,Peoples Services Directorate,Personal Requisites,F106,
http://opendatacommunities.org/id/london-borough-council/sutton,London Borough of Sutton,20/11/2019,1286169,22.00 , SURREY CC CARD PAY,22 - F106 0312 9999 - BIRTH CERT,Peoples Services Directorate,Personal Requisites,F106,
http://opendatacommunities.org/id/london-borough-council/sutton,London Borough of Sutton,20/11/2019,1286169,22.00 , LBSUTTON,22 - F106 0312 9999 - BIRTH CERT,Peoples Services Directorate,Personal Requisites,F106,
http://opendatacommunities.org/id/london-borough-council/sutton,London Borough of Sutton,20/11/2019,1286169,33.00 , LBSUTTON,33 - F106 0312 9999 - BIRTH CERTS,Peoples Services Directorate,Personal Requisites,F106,
http://opendatacommunities.org/id/london-borough-council/sutton,London Borough of Sutton,13/11/2019,1286169,22.00 , LBSUTTON,22 - F106 0312 9999 - RA BIRTH CERT.PNG,Peoples Services Directorate,Personal Requisites,F106,
http://opendatacommunities.org/id/london-borough-council/sutton,London Borough of Sutton,07/11/2019,1286169,80.00 , THE WAVERLEY HOTEL BAN,AWAITING RECEIPT - CONTACT ACCOMMODATION,Peoples Services Directorate,Accommodation - Bed and Breakfast,H202,
http://opendatacommunities.org/id/london-borough-council/sutton,London Borough of Sutton,28/10/2019,1286169,84.24 , TRAVELODGE,EMERGENCY ACCOMMODATION,Peoples Services Directorate,Accommodation - Bed and Breakfast,H202,
http://opendatacommunities.org/id/london-borough-council/sutton,London Borough of Sutton,08/11/2019,1286169,87.50 , THE DUKE OF EDINBURGH,ACCOMMODATION,Peoples Services Directorate,Accommodation - Bed and Breakfast,H202,
http://opendatacommunities.org/id/london-borough-council/sutton,London Borough of Sutton,11/11/2019,1286169,153.00 , PREMIER INN,PREMIER INN STAY FOR STAFF,Peoples Services Directorate,Accommodation - Bed and Breakfast,H202,
http://opendatacommunities.org/id/london-borough-council/sutton,London Borough of Sutton,21/11/2019,1286169,75.00 , THE WAVERLEY HOTEL BAN,AWAITING RECEIPT - CONTACT ACCOMMODATION,Peoples Services Directorate,Accommodation - Bed and Breakfast,H202,
http://opendatacommunities.org/id/london-borough-council/sutton,London Borough of Sutton,12/11/2019,1286169,150.00 , HIGHSTREETVOUCHERS,150.00 - F106 0316 9999 - HIGHSTREET VOUCHERS LOVE2SHOP .PNG,Peoples Services Directorate,Personal Requisites,F106,
http://opendatacommunities.org/id/london-borough-council/sutton,London Borough of Sutton,23/11/2019,1286169,20.00 , OYSTER AUTO-TOP UP,20.00 AUTO TOP UP - A530 0318 9999 -,Peoples Services Directorate,Travelling and Subsistence Allowances,A530,
http://opendatacommunities.org/id/london-borough-council/sutton,London Borough of Sutton,22/11/2019,1286169,20.00 , OYSTER AUTO-TOP UP,20.00 AUTO TOP UP - A530 0318 9999 - 2,Peoples Services Directorate,Travelling and Subsistence Allowances,A530,
http://opendatacommunities.org/id/london-borough-council/sutton,London Borough of Sutton,31/10/2019,1286169,20.00 , WWW.WIGHTLINK.CO.UK,20.00 - A530 0318 9999 - OYSTER TOP UP,Peoples Services Directorate,Travelling and Subsistence Allowances,A530,
http://opendatacommunities.org/id/london-borough-council/sutton,London Borough of Sutton,20/11/2019,1286169,20.00 , OYSTER AUTO-TOP UP,20.00 AUTO TOP UP - A530 0318 9999 -,Peoples Services Directorate,Travelling and Subsistence Allowances,A530,
http://opendatacommunities.org/id/london-borough-council/sutton,London Borough of Sutton,17/11/2019,1286169,20.00 , OYSTER AUTO-TOP UP,20.00 AUTO TOP UP - A530 0318 9999,Peoples Services Directorate,Travelling and Subsistence Allowances,A530,
http://opendatacommunities.org/id/london-borough-council/sutton,London Borough of Sutton,15/11/2019,1286169,20.00 , OYSTER AUTO-TOP UP,20.00 AUTO TOP UP - A530 0318 9999,Peoples Services Directorate,Travelling and Subsistence Allowances,A530,
http://opendatacommunities.org/id/london-borough-council/sutton,London Borough of Sutton,14/11/2019,1286169,20.00 , OYSTER AUTO-TOP UP,20.00 - A530 0318 9999 - OYSTER AUTO TOP UP,Peoples Services Directorate,Travelling and Subsistence Allowances,A530,
http://opendatacommunities.org/id/london-borough-council/sutton,London Borough of Sutton,14/11/2019,1286169,28.94 , MINICABIT,28.94 - H212 0318 999999 - MINICABIR.,Peoples Services Directorate,C.C.A Travel & Subsistance,H212,
http://opendatacommunities.org/id/london-borough-council/sutton,London Borough of Sutton,04/11/2019,1286169,20.00 , OYSTER AUTO-TOP UP,20 A530 0328 9999 - OYSTER,Peoples Services Directorate,Travelling and Subsistence Allowances,A530,
http://opendatacommunities.org/id/london-borough-council/sutton,London Borough of Sutton,28/10/2019,1286169,20.00 , OYSTER AUTO-TOP UP,20.00 AUTO TOP UP - A530 0321 9999,Peoples Services Directorate,Travelling and Subsistence Allowances,A530,
http://opendatacommunities.org/id/london-borough-council/sutton,London Borough of Sutton,31/10/2019,1286169,3.40 , FACEBK  3HBXGPNXK2,FACEBOOK ADVERTISING,Peoples Services Directorate,Fees - Other,F299,
http://opendatacommunities.org/id/london-borough-council/sutton,London Borough of Sutton,30/10/2019,1286169,20.00 , FACEBK  WZJEEP2XK2,FACEBOOK ADVERTISING,Peoples Services Directorate,Fees - Other,F299,
http://opendatacommunities.org/id/london-borough-council/sutton,London Borough of Sutton,29/10/2019,1286169,20.00 , FACEBK  64A8FPNXK2,FACEBOOK ADVERTISING,Peoples Services Directorate,Fees - Other,F299,
http://opendatacommunities.org/id/london-borough-council/sutton,London Borough of Sutton,27/10/2019,1286169,20.00 , OYSTER AUTO-TOP UP,20.00 - A530 0321 9999 - OYSTER TOP UP,Peoples Services Directorate,Travelling and Subsistence Allowances,A530,
http://opendatacommunities.org/id/london-borough-council/sutton,London Borough of Sutton,07/11/2019,1286169,22.00 , LBSUTTON,BIRTH CERTIFICATE,Peoples Services Directorate,Personal Requisites,F106,
http://opendatacommunities.org/id/london-borough-council/sutton,London Borough of Sutton,25/11/2019,1286169,582.02 , AIRBNB   HMAM3SPWN9,582.02 - H202 0321 9999 - AIR BNB.PNG,Peoples Services Directorate,Accommodation - Bed and Breakfast,H202,
http://opendatacommunities.org/id/london-borough-council/sutton,London Borough of Sutton,16/11/2019,1286169,44.16 , AMZNMKTPLACE,SPLIT - VONHAUS OIL FILLED RADIATOR (100%),Peoples Services Directorate,Personal Requisites,F106,
http://opendatacommunities.org/id/london-borough-council/sutton,London Borough of Sutton,22/11/2019,1286169,33.90 , WWW.CORAM.ORG.UK,33.90 F106 0323 9999 X2 FOSTERING BOOK.PNG,Peoples Services Directorate,Personal Requisites,F106,
http://opendatacommunities.org/id/london-borough-council/sutton,London Borough of Sutton,22/11/2019,1286169,41.90 , HILTON,HOTEL PARKING AND INTERNET ACCESS BOURNEMOUTH FOR A CONFERENCE,Chief Executive's Directorate,Conferences - Fees,A525,
http://opendatacommunities.org/id/london-borough-council/sutton,London Borough of Sutton,09/11/2019,1286169,20.00 , OYSTER AUTO-TOP UP,20.00 AUTO TOP UP - A530 0330 9999 -,Chief Executive's Directorate,Travelling and Subsistence Allowances,A530,
http://opendatacommunities.org/id/london-borough-council/sutton,London Borough of Sutton,22/11/2019,1286169,20.00 , OYSTER AUTO-TOP UP,20.00 AUTO TOP UP - A530 0330 9999 -,Chief Executive's Directorate,Travelling and Subsistence Allowances,A530,
http://opendatacommunities.org/id/london-borough-council/sutton,London Borough of Sutton,20/11/2019,1286169,20.00 , OYSTER AUTO-TOP UP,20.00 AUTO TOP UP - A530 0330 9999 -,Chief Executive's Directorate,Travelling and Subsistence Allowances,A530,
http://opendatacommunities.org/id/london-borough-council/sutton,London Borough of Sutton,30/10/2019,1286169,203.93 , WWW.ARGOS.CO.UK,203.93 - F001 0340 9999 - ARGOS.PNG,Peoples Services Directorate,Training Equipment-Pchase,F002,
http://opendatacommunities.org/id/london-borough-council/sutton,London Borough of Sutton,06/11/2019,1286169,59.00 , TESCO STORES 5999,SUTTON FAMILY CENTRE CONTACT SUPPLIES,Peoples Services Directorate,Personal Requisites,F106,
http://opendatacommunities.org/id/london-borough-council/sutton,London Borough of Sutton,02/11/2019,1286169,19.99 , AMZNMKTPLACE,19.99 F106 0340 9999 SAFETY 1ST,Peoples Services Directorate,Personal Requisites,F106,
http://opendatacommunities.org/id/london-borough-council/sutton,London Borough of Sutton,02/11/2019,1286169,19.99 , AMZNMKTPLACE,19.99 F106 0340 9999 SAFETY,Peoples Services Directorate,Personal Requisites,F106,
http://opendatacommunities.org/id/london-borough-council/sutton,London Borough of Sutton,02/11/2019,1286169,34.19 , AMZNMKTPLACE,19.99 F106 0340 9999 SAFETY 1ST,Peoples Services Directorate,Personal Requisites,F106,
http://opendatacommunities.org/id/london-borough-council/sutton,London Borough of Sutton,02/11/2019,1286169,34.19 , AMZNMKTPLACE AMAZON.CO,34.19 - F150 0340 9999 - SFC ITEMS FOR GARDEN,Peoples Services Directorate,Provisions - General,F150,
http://opendatacommunities.org/id/london-borough-council/sutton,London Borough of Sutton,07/11/2019,1286169,20.00 , OYSTER AUTO-TOP UP,20.00 AUTO TOP UP - A530 0359 99999 -,Peoples Services Directorate,Travelling and Subsistence Allowances,A530,
http://opendatacommunities.org/id/london-borough-council/sutton,London Borough of Sutton,06/11/2019,1286169,20.00 , OYSTER AUTO-TOP UP,20 A530 0359 9999 - OYSTER,Peoples Services Directorate,Travelling and Subsistence Allowances,A530,
http://opendatacommunities.org/id/london-borough-council/sutton,London Borough of Sutton,07/11/2019,1286169,20.00 , OYSTER AUTO-TOP UP,20.00 AUTO TOP UP - A530 0359 99999,Peoples Services Directorate,Travelling and Subsistence Allowances,A530,
http://opendatacommunities.org/id/london-borough-council/sutton,London Borough of Sutton,14/11/2019,1286169,20.00 , OYSTER AUTO-TOP UP,20.00 AUTO TOP UP - A530 0359 9999 -,Peoples Services Directorate,Travelling and Subsistence Allowances,A530,
http://opendatacommunities.org/id/london-borough-council/sutton,London Borough of Sutton,06/11/2019,1286169,20.65 , OYSTER ONLINE,20.65 - A530 0359 9999 - NEW OYSTER CARD (1).PNG,Peoples Services Directorate,Travelling and Subsistence Allowances,A530,
http://opendatacommunities.org/id/london-borough-council/sutton,London Borough of Sutton,06/11/2019,1286169,20.65 , OYSTER ONLINE,20.65 - A530 0359 9999 - NEW OYSTER CARD (3).PNG,Peoples Services Directorate,Travelling and Subsistence Allowances,A530,
http://opendatacommunities.org/id/london-borough-council/sutton,London Borough of Sutton,31/10/2019,1286169,159.00 , HOLIDAY INNS,20.00 - A530 0359 9999 - OYSTER TOP UP .PNG,Peoples Services Directorate,Travelling and Subsistence Allowances,A530,
http://opendatacommunities.org/id/london-borough-council/sutton,London Borough of Sutton,31/10/2019,1286169,20.00 , OYSTER AUTO-TOP UP,20.00 - A530 0359 9999 - OYSTER TOP UP .PNG,Peoples Services Directorate,Travelling and Subsistence Allowances,A530,
http://opendatacommunities.org/id/london-borough-council/sutton,London Borough of Sutton,06/11/2019,1286169,20.65 , OYSTER ONLINE,20.65 - A530 0359 9999 - NEW OYSTER CARD .PNG,Peoples Services Directorate,Recruitment Expenses,A531,
http://opendatacommunities.org/id/london-borough-council/sutton,London Borough of Sutton,23/11/2019,1286169,20.00 , OYSTER AUTO-TOP UP,20.65 - A530 0359 9999 - NEW OYSTER CARD (1).PNG,Chief Executive's Directorate,Travelling and Subsistence Allowances,A530,
http://opendatacommunities.org/id/london-borough-council/sutton,London Borough of Sutton,22/11/2019,1286169,12.10 , WM MORRISONS STORE,FOOD FOR NATIONAL TAKEOVER DAY FOR CHILDREN IN CARE COUNCIL,Chief Executive's Directorate,LAC - Education,F269,
http://opendatacommunities.org/id/london-borough-council/sutton,London Borough of Sutton,15/11/2019,1286169,"1,125.00 ", PAYPAL  RESTORATIVE,MEMBERSHIP,Chief Executive's Directorate,Training - Course Fees,A520,
http://opendatacommunities.org/id/london-borough-council/sutton,London Borough of Sutton,25/11/2019,1286169,80.00 , EB  LONDON FGM ASSESSM,80 A520 0366 0652 - FGM ASSESSMENT TOOL TRAINING HALF DAY.PNG,Chief Executive's Directorate,Training - Course Fees,A520,
http://opendatacommunities.org/id/london-borough-council/sutton,London Borough of Sutton,09/11/2019,1286169,121.25 , WIX.COM,EQUIPMENT,Peoples Services Directorate,Personal Requisites,F106,
http://opendatacommunities.org/id/london-borough-council/sutton,London Borough of Sutton,24/11/2019,1286169,16.67 , OYSTER AUTO-TOP UP,TRAVEL,Peoples Services Directorate,Travelling and Subsistence Allowances,A530,
http://opendatacommunities.org/id/london-borough-council/sutton,London Borough of Sutton,20/11/2019,1286169,16.67 , OYSTER AUTO-TOP UP,TRAVEL,Peoples Services Directorate,Travelling and Subsistence Allowances,A530,
http://opendatacommunities.org/id/london-borough-council/sutton,London Borough of Sutton,15/11/2019,1286169,16.67 , OYSTER AUTO-TOP UP,TRAVEL,Peoples Services Directorate,Travelling and Subsistence Allowances,A530,
http://opendatacommunities.org/id/london-borough-council/sutton,London Borough of Sutton,02/11/2019,1286169,16.67 , OYSTER AUTO-TOP UP,TRAVEL,Peoples Services Directorate,Travelling and Subsistence Allowances,A530,
http://opendatacommunities.org/id/london-borough-council/sutton,London Borough of Sutton,20/11/2019,1286169,46.85 , MINICABIT,46.85 - H212 0384 9999 - MINICABIT .PNG,Peoples Services Directorate,C.C.A Travel & Subsistance,H212,
http://opendatacommunities.org/id/london-borough-council/sutton,London Borough of Sutton,05/11/2019,1286169,25.92 , AMAZON.CO.UK 5Q8DW68Z5,SPLIT - AQA A LEVEL CHEMISTRY STUDENT BOOK 1 (AQA A LEVEL SCIENCE) (50.43%),Peoples Services Directorate,LAC - Education,F269,
http://opendatacommunities.org/id/london-borough-council/sutton,London Borough of Sutton,05/11/2019,1286169,25.47 , AMAZON.CO.UK 5Q8DW68Z5,SPLIT - AQA A LEVEL CHEMISTRY STUDENT BOOK 2 (AQA A LEVEL SCIENCE) (49.57%),Peoples Services Directorate,LAC - Education,F269,
http://opendatacommunities.org/id/london-borough-council/sutton,London Borough of Sutton,05/11/2019,1286169,7.26 , AMAZON.CO.UK 7S1X99QA5,SPLIT - NEW FUNCTIONAL SKILLS ENGLISH (70.83%),Peoples Services Directorate,LAC - Education,F269,
http://opendatacommunities.org/id/london-borough-council/sutton,London Borough of Sutton,05/11/2019,1286169,2.99 , AMAZON.CO.UK 7S1X99QA5,BALANCING ENTRY AMOUNT (29.17%),Peoples Services Directorate,LAC - Education,F269,
http://opendatacommunities.org/id/london-borough-council/sutton,London Borough of Sutton,05/11/2019,1286169,16.09 , AMAZON.CO.UK 986GA0335,SPLIT - BMW 3-SERIES (06-14): 2006-14 (HAYNES REPAIR MANUAL) (52.56%),Peoples Services Directorate,LAC - Education,F269,
http://opendatacommunities.org/id/london-borough-council/sutton,London Borough of Sutton,05/11/2019,1286169,7.26 , AMAZON.CO.UK 986GA0335,SPLIT - NEW FUNCTIONAL SKILLS ENGLISH: EDEXCEL ENTRY LEVEL 3 (23.72%),Peoples Services Directorate,LAC - Education,F269,
http://opendatacommunities.org/id/london-borough-council/sutton,London Borough of Sutton,05/11/2019,1286169,7.26 , AMAZON.CO.UK 986GA0335,SPLIT - NEW FUNCTIONAL SKILLS MATHS: EDEXCEL ENTRY LEVEL 3 (23.72%),Peoples Services Directorate,LAC - Education,F269,
http://opendatacommunities.org/id/london-borough-council/sutton,London Borough of Sutton,04/11/2019,1286169,481.12 , AMZNMKTPLACE,LAPTOP TO SUPPORT CLA GCSE WORK,Peoples Services Directorate,LAC - Education,F269,
http://opendatacommunities.org/id/london-borough-council/sutton,London Borough of Sutton,02/11/2019,1286169,6.75 , AMAZON.CO.UK TD0LH4OI5,SPLIT - OXFORD ENGLISH DICTIONARY (69.3%),Peoples Services Directorate,LAC - Education,F269,
http://opendatacommunities.org/id/london-borough-council/sutton,London Borough of Sutton,02/11/2019,1286169,2.99 , AMAZON.CO.UK TD0LH4OI5,BALANCING ENTRY AMOUNT (30.7%),Peoples Services Directorate,LAC - Education,F269,
http://opendatacommunities.org/id/london-borough-council/sutton,London Borough of Sutton,02/11/2019,1286169,5.81 , AMAZON.CO.UK BZ3IK9O75,SPLIT - REVISE EDEXCEL FUNCTIONAL SKILLS MATHEMATICS LEVEL 1 WORKBOOK (54.4%),Peoples Services Directorate,LAC - Education,F269,
http://opendatacommunities.org/id/london-borough-council/sutton,London Borough of Sutton,02/11/2019,1286169,4.87 , AMAZON.CO.UK BZ3IK9O75,SPLIT - NEW FUNCTIONAL SKILLS MATHS LEVEL 1 - STUDY & TEST PRACTICE (45.6%),Peoples Services Directorate,LAC - Education,F269,
http://opendatacommunities.org/id/london-borough-council/sutton,London Borough of Sutton,01/11/2019,1286169,19.82 , AMAZON.CO.UK FT3WD0WG5,HANDWRITING BOOK AND TT BOOK FOR CLA,Peoples Services Directorate,LAC - Education,F269,
http://opendatacommunities.org/id/london-borough-council/sutton,London Borough of Sutton,31/10/2019,1286169,7.26 , AMAZON.CO.UK AP2R89CR5,SPLIT - NEW FUNCTIONAL SKILLS ENGLISH: EDEXCEL ENTRY LEVEL 3 - STUDY & TEST PRACTICE (23.04%),Peoples Services Directorate,LAC - Education,F269,
http://opendatacommunities.org/id/london-borough-council/sutton,London Borough of Sutton,24/11/2019,1286169,7.13 , AMAZON.CO.UK HH1N713H5,SPLIT - NEW FUNCTIONAL SKILLS MATHS (70.45%),Peoples Services Directorate,LAC - Education,F269,
http://opendatacommunities.org/id/london-borough-council/sutton,London Borough of Sutton,24/11/2019,1286169,2.99 , AMAZON.CO.UK HH1N713H5,BALANCING ENTRY AMOUNT (29.55%),Peoples Services Directorate,LAC - Education,F269,
http://opendatacommunities.org/id/london-borough-council/sutton,London Borough of Sutton,21/11/2019,1286169,3.70 , AMAZON.CO.UK QU4BO1A15,SPLIT - GRADE 9-1 GCSE ENGLISH LANGUAGE AND LITERATURE  (29.87%),Peoples Services Directorate,LAC - Education,F269,
http://opendatacommunities.org/id/london-borough-council/sutton,London Borough of Sutton,21/11/2019,1286169,9.39 , AMAZON.CO.UK QU4BO1A15,SPLIT - NEW GCSE MATHS AQA COMPLETE REVISION & PRACTICE(70.13%),Peoples Services Directorate,LAC - Education,F269,
http://opendatacommunities.org/id/london-borough-council/sutton,London Borough of Sutton,07/11/2019,1286169,7.26 , AMAZON.CO.UK 9J3VY33K5,SPLIT - NEW FUNCTIONAL SKILLS MATHS (70.83%),Peoples Services Directorate,LAC - Education,F269,
http://opendatacommunities.org/id/london-borough-council/sutton,London Borough of Sutton,07/11/2019,1286169,2.99 , AMAZON.CO.UK 9J3VY33K5,BALANCING ENTRY AMOUNT (29.17%),Peoples Services Directorate,LAC - Education,F269,
http://opendatacommunities.org/id/london-borough-council/sutton,London Borough of Sutton,31/10/2019,1286169,16.99 , AMAZON.CO.UK AP2R89CR5,SPLIT - ENGLISH-VIETNAMESE & VIETNAMESE-ENGLISH WORD-TO-WORD DICTIONARY (53.92%),Peoples Services Directorate,LAC - Education,F269,
http://opendatacommunities.org/id/london-borough-council/sutton,London Borough of Sutton,31/10/2019,1286169,7.26 , AMAZON.CO.UK AP2R89CR5,SPLIT - NEW FUNCTIONAL SKILLS MATHS: EDEXCEL ENTRY LEVEL 3 - STUDY & TEST PRACTICE (23.04%),Peoples Services Directorate,LAC - Education,F269,
http://opendatacommunities.org/id/london-borough-council/sutton,London Borough of Sutton,04/11/2019,1286169,20.00 , TFL AUTOSETTLEMENT,OYSTERCARD TOP UP,"Environment, Housing & Regeneration Directorate",General Office Expenses,F235,
http://opendatacommunities.org/id/london-borough-council/sutton,London Borough of Sutton,04/11/2019,1286169,20.00 , TFL AUTOSETTLEMENT,OYSTERCARD TOP UP,"Environment, Housing & Regeneration Directorate",General Office Expenses,F235,
http://opendatacommunities.org/id/london-borough-council/sutton,London Borough of Sutton,08/11/2019,1286169,20.00 , OYSTER AUTO-TOP UP,OYSTERCARD TOP UP,"Environment, Housing & Regeneration Directorate",General Office Expenses,F235,
http://opendatacommunities.org/id/london-borough-council/sutton,London Borough of Sutton,06/11/2019,1286169,25.00 , OYSTER ONLINE,OYSTERCARD TOP UP,"Environment, Housing & Regeneration Directorate",General Office Expenses,F235,
http://opendatacommunities.org/id/london-borough-council/sutton,London Borough of Sutton,14/11/2019,1286169,231.34 , WWW.ETCVENUES.CO.UK,AWAY DAY VENUE,"Environment, Housing & Regeneration Directorate",Fees - Room Hire,F290,
http://opendatacommunities.org/id/london-borough-council/sutton,London Borough of Sutton,12/11/2019,1286169,249.88 , GRITBINS.NET,GRIT FOR CAR PARK (TS),"Environment, Housing & Regeneration Directorate",Materials - General,F100,
http://opendatacommunities.org/id/london-borough-council/sutton,London Borough of Sutton,12/11/2019,1286169,249.88 , GRITBINS.NET,GRIT FOR CAR PARKS (GR),"Environment, Housing & Regeneration Directorate",Materials - General,F100,
http://opendatacommunities.org/id/london-borough-council/sutton,London Borough of Sutton,30/10/2019,1286169,(80.00), SABA PARK SERVICES,TEST PERMIT - REFUND,"Environment, Housing & Regeneration Directorate",General Office Expenses,F235,
http://opendatacommunities.org/id/london-borough-council/sutton,London Borough of Sutton,30/10/2019,1286169,(80.00), SABA PARK SERVICES,TEST PERMIT - REFUND,"Environment, Housing & Regeneration Directorate",General Office Expenses,F235,
http://opendatacommunities.org/id/london-borough-council/sutton,London Borough of Sutton,29/10/2019,1286169,61.00 , SABA PARK SERVICES,TEST PERMIT PAYMENT,"Environment, Housing & Regeneration Directorate",General Office Expenses,F235,
http://opendatacommunities.org/id/london-borough-council/sutton,London Borough of Sutton,29/10/2019,1286169,80.00 , SABA PARK SERVICES,TEST PERMIT PAYMENT,"Environment, Housing & Regeneration Directorate",General Office Expenses,F235,
http://opendatacommunities.org/id/london-borough-council/sutton,London Borough of Sutton,29/10/2019,1286169,80.00 , SABA PARK SERVICES,TEST PERMIT PURCHASE,"Environment, Housing & Regeneration Directorate",General Office Expenses,F235,
http://opendatacommunities.org/id/london-borough-council/sutton,London Borough of Sutton,30/10/2019,1286169,80.00 , SABA PARK SERVICES,TEST PERMIT - PAYMENT,"Environment, Housing & Regeneration Directorate",General Office Expenses,F235,
http://opendatacommunities.org/id/london-borough-council/sutton,London Borough of Sutton,30/10/2019,1286169,80.00 , SABA PARK SERVICES,TEST PERMIT - PAYMENT,"Environment, Housing & Regeneration Directorate",General Office Expenses,F235,
http://opendatacommunities.org/id/london-borough-council/sutton,London Borough of Sutton,30/10/2019,1286169,80.00 , SABA PARK SERVICES,TEST PERMIT - PAYMENT,"Environment, Housing & Regeneration Directorate",General Office Expenses,F235,
http://opendatacommunities.org/id/london-borough-council/sutton,London Borough of Sutton,30/10/2019,1286169,80.00 , SABA PARK SERVICES,TEST PERMIT - PAYMENT,"Environment, Housing & Regeneration Directorate",General Office Expenses,F235,
http://opendatacommunities.org/id/london-borough-council/sutton,London Borough of Sutton,30/10/2019,1286169,80.00 , SABA PARK SERVICES,TEST PERMIT - PAYMENT,"Environment, Housing & Regeneration Directorate",General Office Expenses,F235,
http://opendatacommunities.org/id/london-borough-council/sutton,London Borough of Sutton,30/10/2019,1286169,(80.00), SABA PARK SERVICES,TEST PERMIT - REFUND,"Environment, Housing & Regeneration Directorate",General Office Expenses,F235,
http://opendatacommunities.org/id/london-borough-council/sutton,London Borough of Sutton,30/10/2019,1286169,(61.00), SABA PARK SERVICES,TEST PERMIT - REFUND,"Environment, Housing & Regeneration Directorate",General Office Expenses,F235,
http://opendatacommunities.org/id/london-borough-council/sutton,London Borough of Sutton,30/10/2019,1286169,(80.00), SABA PARK SERVICES,TEST PERMIT - REFUND,"Environment, Housing & Regeneration Directorate",General Office Expenses,F235,
http://opendatacommunities.org/id/london-borough-council/sutton,London Borough of Sutton,30/10/2019,1286169,(80.00), SABA PARK SERVICES,TEST PERMIT - REFUND,"Environment, Housing & Regeneration Directorate",General Office Expenses,F235,
http://opendatacommunities.org/id/london-borough-council/sutton,London Borough of Sutton,30/10/2019,1286169,(80.00), SABA PARK SERVICES,TEST PERMIT - REFUND,"Environment, Housing & Regeneration Directorate",General Office Expenses,F235,
http://opendatacommunities.org/id/london-borough-council/sutton,London Borough of Sutton,30/10/2019,1286169,(80.00), SABA PARK SERVICES,TEST PERMIT - REFUND,"Environment, Housing & Regeneration Directorate",General Office Expenses,F235,
http://opendatacommunities.org/id/london-borough-council/sutton,London Borough of Sutton,13/11/2019,1286169,230.40 , HOLIDAY INN,MANCHESTER CONFERENCE 2 NIGHTS STAY,Resources Directorate,Hotel Accomodation,A512,
http://opendatacommunities.org/id/london-borough-council/sutton,London Borough of Sutton,01/11/2019,1286169,10.00 , NEW SOUTHERN RAILW,TOP UP REGISTER OFFICE OYSTER,Resources Directorate,Training - Travel and Subsistence,A521,
http://opendatacommunities.org/id/london-borough-council/sutton,London Borough of Sutton,05/11/2019,1286169,21.85 , SUTTLES OF MALDEN,CP FOLDER FOR NEW CP FORMATIONS,Resources Directorate,Stationery,F220,
http://opendatacommunities.org/id/london-borough-council/sutton,London Borough of Sutton,04/11/2019,1286169,6.67 , TESCO STORE 3235,MARKER PENS EMERGENCY FOR A CONFERENCE,Resources Directorate,General Office Expenses,F235,
http://opendatacommunities.org/id/london-borough-council/sutton,London Borough of Sutton,03/11/2019,1286169,8.32 , SPOTIFY UK,MUSIC FOR CEREMONIES MONTHLY PAYMENT,Resources Directorate,Subscriptions - General,F450,
http://opendatacommunities.org/id/london-borough-council/sutton,London Borough of Sutton,07/11/2019,1286169,16.25 , WM MORRISONS STORE,COFFE MILK TISSUES,Resources Directorate,Miscellaneous Expenses,F620,
http://opendatacommunities.org/id/london-borough-council/sutton,London Borough of Sutton,31/10/2019,1286169,8.33 , MORDEN GARDEN CENTRE,BULBS FOR GARDEN,Resources Directorate,Miscellaneous Expenses,F620,
http://opendatacommunities.org/id/london-borough-council/sutton,London Borough of Sutton,31/10/2019,1286169,29.99 , WWW.INSTANTPRINT.C,POP UP BANNER FOR PROMOTION AT RUSSETTINGS,Resources Directorate,Miscellaneous Expenses,F620,
http://opendatacommunities.org/id/london-borough-council/sutton,London Borough of Sutton,21/11/2019,1286169,20.00 , OYSTER AUTO-TOP UP,OYSTERCARD TOP UP,"Environment, Housing & Regeneration Directorate",General Office Expenses,F235,
http://opendatacommunities.org/id/london-borough-council/sutton,London Borough of Sutton,11/11/2019,1286169,104.82 , TRAVELODGE,TRAVELODGE 2 NIGHTS,"Environment, Housing & Regeneration Directorate",Bed and Breakfast Accommodation,G400,
http://opendatacommunities.org/id/london-borough-council/sutton,London Borough of Sutton,05/11/2019,1286169,591.58 , TRAVELODGE,TRAVELODGE 5 NIGHTS 2 ROOMS,"Environment, Housing & Regeneration Directorate",Bed and Breakfast Accommodation,G400,
http://opendatacommunities.org/id/london-borough-council/sutton,London Borough of Sutton,13/11/2019,1286169,50.00 , HOTEL IBIS,HOTEL ACCOMODATION,Chief Executive's Directorate,Hotel Accomodation,A512,
http://opendatacommunities.org/id/london-borough-council/sutton,London Borough of Sutton,05/11/2019,1286169,155.83 , WWW.CIPS.ORG,CIPS MEMBERSHIP - RECHARGE TO L&D,Chief Executive's Directorate,Training - Course Fees,A520,
http://opendatacommunities.org/id/london-borough-council/sutton,London Borough of Sutton,01/11/2019,1286169,155.83 , WWW.CIPS.ORG,CIPS MEMBERSHIP - RECHARGE TO L&D,Chief Executive's Directorate,Training - Course Fees,A520,
http://opendatacommunities.org/id/london-borough-council/sutton,London Borough of Sutton,22/11/2019,1286169,2.60 , WEST COAST TRAINS,TRAVEL,Chief Executive's Directorate,Travelling and Subsistence Allowances,A530,
http://opendatacommunities.org/id/london-borough-council/sutton,London Borough of Sutton,21/11/2019,1286169,2.60 , UNIVERSITY STN SST,TRAVEL,Chief Executive's Directorate,Travelling and Subsistence Allowances,A530,
http://opendatacommunities.org/id/london-borough-council/sutton,London Borough of Sutton,16/11/2019,1286169,20.00 , OYSTER AUTO-TOP UP,TEAM OYSTER,Chief Executive's Directorate,Travelling and Subsistence Allowances,A530,
http://opendatacommunities.org/id/london-borough-council/sutton,London Borough of Sutton,12/11/2019,1286169,92.95 , TRAINLINE.COM,TRAVEL CONFERENCE BIRMINGHAM,Chief Executive's Directorate,Travelling and Subsistence Allowances,A530,
http://opendatacommunities.org/id/london-borough-council/sutton,London Borough of Sutton,10/11/2019,1286169,20.00 , OYSTER AUTO-TOP UP,TEAM OYSTER,Chief Executive's Directorate,Travelling and Subsistence Allowances,A530,
http://opendatacommunities.org/id/london-borough-council/sutton,London Borough of Sutton,07/11/2019,1286169,20.00 , OYSTER AUTO-TOP UP,TEAM OYSTER,Chief Executive's Directorate,Travelling and Subsistence Allowances,A530,
http://opendatacommunities.org/id/london-borough-council/sutton,London Borough of Sutton,29/10/2019,1286169,9.00 , MELVILLE CARS LTD,TAXI FOR HELEN BAILEY ON 29.10.19,Chief Executive's Directorate,Travelling and Subsistence Allowances,A530,
http://opendatacommunities.org/id/london-borough-council/sutton,London Borough of Sutton,01/11/2019,1286169,20.00 , OYSTER AUTO-TOP UP,TEAM OYSTER,Chief Executive's Directorate,Travelling and Subsistence Allowances,A530,
http://opendatacommunities.org/id/london-borough-council/sutton,London Borough of Sutton,24/11/2019,1286169,20.00 , OYSTER AUTO-TOP UP,TEAM OYSTER,Chief Executive's Directorate,Travelling and Subsistence Allowances,A530,
http://opendatacommunities.org/id/london-borough-council/sutton,London Borough of Sutton,24/11/2019,1286169,20.00 , OYSTER AUTO-TOP UP,TEAM OYSTER,Chief Executive's Directorate,Travelling and Subsistence Allowances,A530,
http://opendatacommunities.org/id/london-borough-council/sutton,London Borough of Sutton,23/11/2019,1286169,20.00 , OYSTER AUTO-TOP UP,TEAM OYSTER,Chief Executive's Directorate,Travelling and Subsistence Allowances,A530,
http://opendatacommunities.org/id/london-borough-council/sutton,London Borough of Sutton,23/11/2019,1286169,20.00 , OYSTER AUTO-TOP UP,TEAM OYSTER,Chief Executive's Directorate,Travelling and Subsistence Allowances,A530,
http://opendatacommunities.org/id/london-borough-council/sutton,London Borough of Sutton,11/11/2019,1286169,12.99 , BOOTS 0858,FLU JAB,Chief Executive's Directorate,Health and Safety Equipment,F005,
http://opendatacommunities.org/id/london-borough-council/sutton,London Borough of Sutton,15/11/2019,1286169,4.91 ,,,Chief Executive's Directorate,Fees - Computer Software,F384,
http://opendatacommunities.org/id/london-borough-council/sutton,London Borough of Sutton,14/11/2019,1286169,178.54 , MAILCHIMP    MONTHLY,WEB HOSTING,Chief Executive's Directorate,Fees - Computer Software,F384,
http://opendatacommunities.org/id/london-borough-council/sutton,London Borough of Sutton,20/11/2019,1286169,16.43 , CARTRIDGE SAVE,INK CARTRIDGES FOR RICOH MP3010 X 2,Resources Directorate,Stationery,F220,
http://opendatacommunities.org/id/london-borough-council/sutton,London Borough of Sutton,06/11/2019,1286169,20.00 , OYSTER AUTO-TOP UP,20 A530 4114 9999 - OYSTER.,Resources Directorate,Travelling and Subsistence Allowances,A530,
http://opendatacommunities.org/id/london-borough-council/sutton,London Borough of Sutton,22/11/2019,1286169,20.00 , OYSTER AUTO-TOP UP,20 A530 4114 9999 - OYSTER.,Resources Directorate,Travelling and Subsistence Allowances,A530,
http://opendatacommunities.org/id/london-borough-council/sutton,London Borough of Sutton,22/11/2019,1286169,20.00 , OYSTER AUTO-TOP UP,20 A530 4114 9999 -,Resources Directorate,Travelling and Subsistence Allowances,A530,
http://opendatacommunities.org/id/london-borough-council/sutton,London Borough of Sutton,04/11/2019,1286169,20.00 , TFL AUTOSETTLEMENT,20 A530 4114 9999 - TFL AUTO SETTLEMENT .PNG,Resources Directorate,Travelling and Subsistence Allowances,A530,
http://opendatacommunities.org/id/london-borough-council/sutton,London Borough of Sutton,06/11/2019,1286169,20.65 , OYSTER ONLINE,20.65 - A530 4114 9999 - NEW OYSTER CARD .PNG,Resources Directorate,Travelling and Subsistence Allowances,A530,
http://opendatacommunities.org/id/london-borough-council/sutton,London Borough of Sutton,06/11/2019,1286169,20.65 , OYSTER ONLINE,20.65 - A530 4114 9999 - NEW OYSTER CARD (2).PNG,Resources Directorate,Travelling and Subsistence Allowances,A530,
http://opendatacommunities.org/id/london-borough-council/sutton,London Borough of Sutton,06/11/2019,1286169,20.65 , OYSTER ONLINE,20.65 - A530 4114 9999 - NEW OYSTER CARD (1).PNG,Resources Directorate,Travelling and Subsistence Allowances,A530,
http://opendatacommunities.org/id/london-borough-council/sutton,London Borough of Sutton,06/11/2019,1286169,20.65 , OYSTER ONLINE,20.65 - A530 4114 9999 - NEW OYSTER CARD .PNG,Resources Directorate,Travelling and Subsistence Allowances,A530,
http://opendatacommunities.org/id/london-borough-council/sutton,London Borough of Sutton,15/11/2019,1286169,20.00 , OYSTER AUTO-TOP UP,20.00 AUTO TOP UP - A530 4114 9999 - 12TH NOV.PNG,Resources Directorate,Recruitment Expenses,A531,
http://opendatacommunities.org/id/london-borough-council/sutton,London Borough of Sutton,31/10/2019,1286169,35.99 , AMZNMKTPLACE AMAZON.CO,SPLIT - RIGOGLIOSO AIR PURIFIER AIR CLEANER (76.61%),Resources Directorate,Personal Requisites,F106,
http://opendatacommunities.org/id/london-borough-council/sutton,London Borough of Sutton,31/10/2019,1286169,10.99 , AMZNMKTPLACE AMAZON.CO,SPLIT - RIGOGLIOSO PORTABLE AIR PURIFIER (23.39%),Resources Directorate,Personal Requisites,F106,
http://opendatacommunities.org/id/london-borough-council/sutton,London Borough of Sutton,12/11/2019,1286169,173.57 , TRAINLINE.COM,TRAIN TRAVEL TO PENSIONS CONFERENCE,Resources Directorate,Travelling and Subsistence Allowances,A530,
http://opendatacommunities.org/id/london-borough-council/sutton,London Borough of Sutton,12/11/2019,1286169,116.25 , RICHARDSON HOTELS LIMI,ACCOMMODATION WHILE ATTENDING PENSION CONFERENCE,Resources Directorate,Travelling and Subsistence Allowances,A530,
http://opendatacommunities.org/id/london-borough-council/sutton,London Borough of Sutton,12/11/2019,1286169,292.68 , PAYPAL  YAMM OR FP,FORM PUBLISHER ANNUAL SUBSCRIPTION RENEWAL - AWAITING RECEIPT FOR 2019,Resources Directorate,Purchase of IT Equipment,F380,
http://opendatacommunities.org/id/london-borough-council/sutton,London Borough of Sutton,03/11/2019,1286169,11.61 , GOOGLE  ADS8517410550,BALANCING ENTRY AMOUNT,Chief Executive's Directorate,Advertising/Publicity (non Staff),F240,
http://opendatacommunities.org/id/london-borough-council/sutton,London Borough of Sutton,31/10/2019,1286169,25.69 , FACEBK RS5FWN2AL2,SPLIT - FACEBOOK ADS - DOMESTIC ABUSE (49.11%),Chief Executive's Directorate,Corporate Publicity,F356,
http://opendatacommunities.org/id/london-borough-council/sutton,London Borough of Sutton,08/11/2019,1286169,(3.99), AMAZON MUSIC,REFUND AS PER LAST MONTHS STATEMENT,Chief Executive's Directorate,General Office Expenses,F235,
http://opendatacommunities.org/id/london-borough-council/sutton,London Borough of Sutton,22/11/2019,1286169,32.61 , HOLIDAY INN BRISTO,TRANSACTION UNDER INVESTIGATION WITH THE HOTEL,Resources Directorate,Hospitality (VAT not Recoverable),F325,
http://opendatacommunities.org/id/london-borough-council/sutton,London Borough of Sutton,19/11/2019,1286169,21.00 , ECL PLASTICS LTD,CHARITY BUCKET LABELS,Resources Directorate,Mayor's Allowance,F407,
http://opendatacommunities.org/id/london-borough-council/sutton,London Borough of Sutton,19/11/2019,1286169,45.95 , FUNDRAISINGBOXES.CO.UK,MAYOR'S CHARITY BOXES,Resources Directorate,Mayor's Allowance,F407,
http://opendatacommunities.org/id/london-borough-council/sutton,London Borough of Sutton,31/10/2019,1286169,20.00 , OYSTER AUTO-TOP UP,AUTOMATIC OYSTER TOP UP FOR CLLR.,Resources Directorate,Members Expenses - Travel and Subsistence,F401,
http://opendatacommunities.org/id/london-borough-council/sutton,London Borough of Sutton,11/11/2019,1286169,180.00 , WESTMINSTER INSIGHT,DOMESTIC ABUSE FORUM - CLLR.,Resources Directorate,Members Expenses - Other,F402,
http://opendatacommunities.org/id/london-borough-council/sutton,London Borough of Sutton,29/10/2019,1286169,151.50 , VIRGIN TRAINS,TRAIN TRAVEL TO CONFERENCE,Chief Executive's Directorate,Training - Travel and Subsistence,A521,
http://opendatacommunities.org/id/london-borough-council/sutton,London Borough of Sutton,30/10/2019,1286169,123.33 , VIRGIN TRAINS,TRAIN TRAVEL,Chief Executive's Directorate,Conferences - Travel and Subsistence,A526,
http://opendatacommunities.org/id/london-borough-council/sutton,London Borough of Sutton,05/11/2019,1286169,3.10 , SAINSBURYS SACAT 4053,DINNER FOR THE COMMUNICATIONS AND ENGAGEMENT TEAM IN MANCHASTER ON DAY 2,Chief Executive's Directorate,Refreshments,F155,
http://opendatacommunities.org/id/london-borough-council/sutton,London Borough of Sutton,05/11/2019,1286169,13.06 , PRET A MANGER,DINNER FOR THE COMMUNICATIONS AND ENGAGEMENT TEAM IN MANCHASTER ON DAY 2,Chief Executive's Directorate,Refreshments,F155,
http://opendatacommunities.org/id/london-borough-council/sutton,London Borough of Sutton,04/11/2019,1286169,101.70 , WAGAMAMA 239,DINNER FOR THE COMMUNICATIONS AND ENGAGEMENT TEAM IN MANCHASTER ON DAY 1,Chief Executive's Directorate,Refreshments,F155,
http://opendatacommunities.org/id/london-borough-council/sutton,London Borough of Sutton,31/10/2019,1286169,26.62 , FACEBK RS5FWN2AL2,SPLIT - FACEBOOK ADS - COMMUNITY AWARDS (50.89%),Chief Executive's Directorate,Corporate Publicity,F356,
http://opendatacommunities.org/id/london-borough-council/sutton,London Borough of Sutton,31/10/2019,1286169,200.00 , VIRGIN TRAINS,TRAVEL FOR 2 LONDON-BIRMINGHAM RETURN,"Environment, Housing & Regeneration Directorate",Training - Travel and Subsistence,A521,
http://opendatacommunities.org/id/london-borough-council/sutton,London Borough of Sutton,04/11/2019,1286169,35.70 , SOUNDINDUCT.CO.UK,SOUND INDUCTION LOOP FOR MEETING ROOM,"Environment, Housing & Regeneration Directorate",Other Equipment - Purchase,F015,
http://opendatacommunities.org/id/london-borough-council/sutton,London Borough of Sutton,13/11/2019,1286169,179.00 , CHARTERED MNGMENT,CMI MEMBERSHIP (GP),"Environment, Housing & Regeneration Directorate",Subscriptions - General,F450,
http://opendatacommunities.org/id/london-borough-council/sutton,London Borough of Sutton,04/11/2019,1286169,170.00 , WWW.APM.ORG.UK,APM MEMBERSHIP (MD),"Environment, Housing & Regeneration Directorate",Subscriptions - General,F450,
http://opendatacommunities.org/id/london-borough-council/sutton,London Borough of Sutton,22/11/2019,1286169,695.00 , REDACTIVE,CIFPA LONDON FOR PUBLIC FINANCE CONFERENCE 8-9 JULY 2020,Resources Directorate,Conferences - Fees,A525,
http://opendatacommunities.org/id/london-borough-council/sutton,London Borough of Sutton,06/11/2019,1286169,(149.00), WWW.ARGOS.CO.UK,REFUND FOR RETURNED GOODS (SINGLE DIVAN),Resources Directorate,Grants,F473,
http://opendatacommunities.org/id/london-borough-council/sutton,London Borough of Sutton,01/11/2019,1286169,145.95 , WWW.ARGOS.CO.UK,PURCHASE OF SINGLE DIVAN FOR CRISIS GRANT,Resources Directorate,Grants,F473,
http://opendatacommunities.org/id/london-borough-council/sutton,London Borough of Sutton,29/10/2019,1286169,102.95 , WWW.ARGOS.CO.UK,PURCHASE OF DOUBLE BED FOR CRISIS GRANT,Resources Directorate,Grants,F473,
http://opendatacommunities.org/id/london-borough-council/sutton,London Borough of Sutton,25/11/2019,1286169,229.99 , WWW.ARGOS.CO.UK,CL&G,Resources Directorate,Grants,F473,
http://opendatacommunities.org/id/london-borough-council/sutton,London Borough of Sutton,25/11/2019,1286169,229.99 , WWW.ARGOS.CO.UK,CL&G,Resources Directorate,Grants,F473,
http://opendatacommunities.org/id/london-borough-council/sutton,London Borough of Sutton,11/11/2019,1286169,334.98 , WWW.ARGOS.CO.UK,,Resources Directorate,Grants,F473,
http://opendatacommunities.org/id/london-borough-council/sutton,London Borough of Sutton,29/10/2019,1286169,53.94 , WWW.ARGOS.CO.UK,CL&G,Resources Directorate,Grants,F473,
http://opendatacommunities.org/id/london-borough-council/sutton,London Borough of Sutton,20/11/2019,1286169,395.94 , WWW.ARGOS.CO.UK,"CLG PURCHASE, ELECTRIC COOKER AND DIVAN",Resources Directorate,Grants,F473,
http://opendatacommunities.org/id/london-borough-council/sutton,London Borough of Sutton,14/11/2019,1286169,389.98 , WWW.ARGOS.CO.UK,"CLG PURCHASE, ELECTRIC COOKER AND FRIDGE FREEZER",Resources Directorate,Grants,F473,
http://opendatacommunities.org/id/london-borough-council/sutton,London Borough of Sutton,29/10/2019,1286169,72.95 , WWW.ARGOS.CO.UK,CL&G PURCHASE,Resources Directorate,Grants,F473,
http://opendatacommunities.org/id/london-borough-council/sutton,London Borough of Sutton,29/10/2019,1286169,239.99 , WWW.ARGOS.CO.UK,CL&G PURCHASE,Resources Directorate,Grants,F473,
http://opendatacommunities.org/id/london-borough-council/sutton,London Borough of Sutton,25/11/2019,1286169,149.99 , WWW.ARGOS.CO.UK,PURCHASE FOR CUSTOMER THROUGH CRISIS LOAN AND GRANT SCHEME,Resources Directorate,Grants,F473,
http://opendatacommunities.org/id/london-borough-council/sutton,London Borough of Sutton,29/10/2019,1286169,268.99 , WWW.ARGOS.CO.UK,PURCHASE OF FREEZER AND SINGLE DIVAN FOR CRISIS GRANT,Resources Directorate,Grants,F473,
http://opendatacommunities.org/id/london-borough-council/sutton,London Borough of Sutton,28/10/2019,1286169,101.95 , WWW.ARGOS.CO.UK,PURCHASE OF DOUBLE MATTRESS FOR CRISIS GRANT,Resources Directorate,Grants,F473,
http://opendatacommunities.org/id/london-borough-council/sutton,London Borough of Sutton,28/10/2019,1286169,79.00 , WWW.ARGOS.CO.UK,PURCHASE OF SINGLE MATTRESS FOR CRISIS GRANT,Resources Directorate,Grants,F473,
http://opendatacommunities.org/id/london-borough-council/sutton,London Borough of Sutton,29/10/2019,1286169,18.00 , WWW.GOV.UK,12 X PROBATE CERTIFICATES,Resources Directorate,General Office Expenses,F235,
http://opendatacommunities.org/id/london-borough-council/sutton,London Borough of Sutton,14/11/2019,1286169,40.52 , PAYPAL  YAMM OR FP,AWESOME GAPPS GOOGLE FORM SOFTWARE FOR ACCOUNTS PAYABLE,Resources Directorate,Purchase of Software,F381,
http://opendatacommunities.org/id/london-borough-council/sutton,London Borough of Sutton,24/11/2019,1286169,150.00 , THE CASTLE HOTEL LLAND,150 - H202 6401 9999 - CASTLE HOTEL.PNG,Peoples Services Directorate,Accommodation - Bed and Breakfast,H202,
http://opendatacommunities.org/id/london-borough-council/sutton,London Borough of Sutton,08/11/2019,1286169,229.00 , CURRYS ONLINE,229 .00 - F001 6403 9999 - CURRYS.PNG,Peoples Services Directorate,Administrative Equipment,F001,
http://opendatacommunities.org/id/london-borough-council/sutton,London Borough of Sutton,27/10/2019,1286169,20.00 , OYSTER AUTO-TOP UP,20.00 AUTO TOP UP - A530 6404 9999,Peoples Services Directorate,Travelling and Subsistence Allowances,A530,
http://opendatacommunities.org/id/london-borough-council/sutton,London Borough of Sutton,23/11/2019,1286169,49.36 , FACEBK YV5DCP2AL2,FACEBOOK DIABETES CAMPAIGN FOR PUBLIC HEALTH,Chief Executive's Directorate,Corporate Publicity,F356,
